fUSD/lending_fUSD_20250110
["ID","MTS","AMOUNT","RATE_DAILY","PERIOD"]
[348391087,1736500248860,-500.0,0.00010543,2]
[348391088,1736500248869,-807.38,0.00010543,2]
[348391089,1736500248879,-510.99,0.00010543,2]
[348391090,1736500248889,-986.68,0.00010543,2]
[348391091,1736500248898,-671.81,0.00010543,2]
[348391092,1736500248907,-151.0,0.00010544,2]
[348391093,1736500248916,-213.946268,0.00010544,2]
[348391094,1736500248926,-213.946268,0.00010544,2]
[348391095,1736500248935,-151.0,0.00010544,2]
[348391096,1736500248944,-818.83,0.00010544,2]
[348391097,1736500248954,-500.0,0.00010544,2]
[348391098,1736500248963,-500.0,0.00010544,2]
[348391099,1736500248973,-1068.78,0.00010544,2]
[348391100,1736500248983,-2231.68,0.00010544,2]
[348391101,1736500248992,-579.53,0.00010544,2]
[348391102,1736500249001,-500.0,0.00010544,2]
[348391103,1736500249010,-779.52,0.00010544,2]
[348391104,1736500249020,-854.14,0.00010544,2]
[348391105,1736500249037,-761.22,0.00010544,2]
[348391106,1736500249047,-1070.48,0.00010544,2]
[348391107,1736500249056,-859.71,0.00010544,2]
[348391108,1736500249066,-855.15,0.00010544,2]
[348391109,1736500249076,-1327.36,0.00010544,2]
[348391110,1736500249085,-1140.93,0.00010544,2]
[348391111,1736500249094,-1385.89,0.00010544,2]
[348391112,1736500249104,-1284.44,0.00010544,2]
[348391113,1736500249114,-2300.59,0.00010544,2]
[348391114,1736500249124,-5548.96,0.00010544,2]
[348391115,1736500249133,-1000.0,0.00010544,2]
[348391116,1736500249143,-1015.53,0.00010544,2]
[348391117,1736500249153,-999.61,0.00010544,2]
[348391118,1736500249162,-500.0,0.00010544,2]
[348391119,1736500249173,-2178.98,0.00010544,2]
[348391120,1736500249182,-656.42,0.00010544,2]
[348391121,1736500249196,-754.55,0.00010544,2]
[348391122,1736500249206,-500.0,0.00010546,2]
[348391123,1736500249218,-500.0,0.00010546,2]
[348391124,1736500249227,-500.0,0.00010546,2]
[348391125,1736500249237,-500.0,0.00010546,2]
[348391126,1736500249248,-500.0,0.00010546,2]
[348391127,1736500249257,-500.0,0.00010546,2]
[348391128,1736500249267,-500.0,0.00010546,2]
[348391129,1736500249276,-500.0,0.00010546,2]
[348391130,1736500249286,-500.0,0.00010546,2]
[348391131,1736500249295,-346.85208917,0.00010546,2]
[348391132,1736500249305,-722.5,0.00010546,2]
[348391133,1736500249314,-500.0,0.00010546,2]
[348391134,1736500249324,-647.0,0.00010546,2]
[348391135,1736500249334,-500.0,0.00010546,2]
[348391136,1736500249343,-500.0,0.00010546,2]
[348391137,1736500249352,-847.26,0.00010546,2]
[348391138,1736500249362,-544.25549633,0.00010546,2]
[348391139,1736500249371,-598.14,0.00010546,2]
[348391140,1736500249381,-500.0,0.00010546,2]
[348391141,1736500249391,-747.48,0.00010546,2]
[348391142,1736500249400,-500.0,0.00010546,2]
[348391143,1736500249411,-500.0,0.00010546,2]
[348391144,1736500249420,-500.0,0.00010546,2]
[348391145,1736500249430,-500.0,0.00010546,2]
[348391146,1736500249443,-676.21,0.00010546,2]
[348391147,1736500249452,-519.68,0.00010546,2]
[348391148,1736500249462,-232.05474402,0.00010546,2]
[348391149,1736500249472,-684.89,0.00010546,2]
[348391150,1736500249481,-500.0,0.00010546,2]
[348391151,1736500249491,-678.52,0.00010546,2]
[348391152,1736500249501,-500.0,0.00010546,2]
[348391153,1736500249510,-500.0,0.00010546,2]
[348391154,1736500249519,-500.0,0.00010546,2]
[348391155,1736500249528,-500.0,0.00010546,2]
[348391156,1736500249538,-500.0,0.00010546,2]
[348391157,1736500249547,-502.22,0.00010546,2]
[348391158,1736500249557,-500.0,0.00010546,2]
[348391159,1736500249567,-726.78,0.00010546,2]
[348391160,1736500249576,-3609.52,0.00010546,2]
[348391161,1736500249585,-516.38,0.00010546,2]
[348391162,1736500249595,-500.0,0.00010546,2]
[348391163,1736500249658,-515.94,0.00010546,2]
[348391164,1736500249667,-699.66,0.00010546,2]
[348391165,1736500249678,-500.0,0.00010546,2]
[348391166,1736500249689,-500.0,0.00010546,2]
[348391167,1736500249698,-780.6,0.00010546,2]
[348391168,1736500249707,-500.0,0.00010546,2]
[348391169,1736500249717,-500.0,0.00010546,2]
[348391170,1736500249726,-500.0,0.00010546,2]
[348391171,1736500249735,-500.0,0.00010546,2]
[348391172,1736500249744,-618.37,0.00010546,2]
[348391173,1736500249753,-798.41,0.00010546,2]
[348391174,1736500249763,-500.0,0.00010546,2]
[348391175,1736500249772,-780.76,0.00010546,2]
[348391176,1736500249782,-500.0,0.00010546,2]
[348391177,1736500249791,-839.05,0.00010546,2]
[348391178,1736500249802,-567.04,0.00010546,2]
[348391179,1736500249811,-500.0,0.00010546,2]
[348391180,1736500249820,-722.12,0.00010546,2]
[348391181,1736500249829,-500.0,0.00010546,2]
[348391182,1736500249839,-500.0,0.00010546,2]
[348391183,1736500249848,-727.02,0.00010546,2]
[348391184,1736500249857,-500.0,0.00010546,2]
[348391185,1736500249866,-799.7,0.00010546,2]
[348391186,1736500249875,-573.06,0.00010546,2]
[348391187,1736500249885,-541.26,0.00010546,2]
[348391188,1736500249895,-795.35,0.00010546,2]
[348391189,1736500249904,-700.8,0.00010546,2]
[348391190,1736500249914,-662.09,0.00010546,2]
[348391191,1736500249923,-500.0,0.00010546,2]
[348391192,1736500249932,-506.5665679,0.00010546,2]
[348391193,1736500249945,-1084.74,0.00010546,2]
[348391194,1736500249954,-624.1,0.00010546,2]
[348391195,1736500249963,-630.17,0.00010546,2]
[348391196,1736500249973,-500.0,0.00010546,2]
[348391197,1736500249983,-773.65,0.00010546,2]
[348391198,1736500249992,-941.95,0.00010546,2]
[348391199,1736500250001,-500.0,0.00010546,2]
[348391200,1736500250010,-606.38,0.00010546,2]
[348391201,1736500250019,-741.93,0.00010546,2]
[348391202,1736500250028,-3198.72,0.00010546,2]
[348391203,1736500250038,-500.0,0.00010546,2]
[348391204,1736500250048,-500.0,0.00010546,2]
[348391205,1736500250057,-500.0,0.00010546,2]
[348391206,1736500250067,-924.89,0.00010546,2]
[348391207,1736500250076,-1983.31,0.00010546,2]
[348391208,1736500250085,-878.81,0.00010546,2]
[348391209,1736500250095,-2797.4,0.00010546,2]
[348391210,1736500250104,-660.89,0.00010546,2]
[348391211,1736500250113,-806.13,0.00010546,2]
[348391212,1736500250122,-1243.22,0.00010546,2]
[348391213,1736500250131,-500.0,0.00010546,2]
[348391214,1736500250140,-828.33,0.00010546,2]
[348391215,1736500250149,-1719.05,0.00010546,2]
[348391216,1736500250159,-874.32,0.00010546,2]
[348391217,1736500250168,-2691.14,0.00010546,2]
[348391218,1736500250178,-714.58,0.00010546,2]
[348391219,1736500250189,-1219.22,0.00010546,2]
[348391220,1736500250198,-500.0,0.00010546,2]
[348391221,1736500250208,-500.0,0.00010546,2]
[348391222,1736500250217,-876.12,0.00010546,2]
[348391223,1736500250227,-605.63,0.00010546,2]
[348391224,1736500250236,-500.0,0.00010546,2]
[348391225,1736500250246,-590.85,0.00010546,2]
[348391226,1736500250255,-500.0,0.00010546,2]
[348391227,1736500250265,-2537.41,0.00010546,2]
[348391228,1736500250275,-500.0,0.00010546,2]
[348391229,1736500250284,-935.44,0.00010546,2]
[348391230,1736500250294,-704.75,0.00010546,2]
[348391231,1736500250303,-500.0,0.00010546,2]
[348391232,1736500250313,-575.78,0.00010546,2]
[348391233,1736500250324,-500.0,0.00010546,2]
[348391234,1736500250333,-635.55,0.00010546,2]
[348391235,1736500250343,-500.0,0.00010546,2]
[348391236,1736500250352,-755.21,0.00010546,2]
[348391237,1736500250361,-925.95,0.00010546,2]
[348391238,1736500250371,-855.59,0.00010546,2]
[348391239,1736500250381,-1110.51,0.00010546,2]
[348391240,1736500250390,-500.0,0.00010546,2]
[348391241,1736500250401,-500.0,0.00010546,2]
[348391242,1736500250410,-500.0,0.00010546,2]
[348391243,1736500250419,-616.02,0.00010546,2]
[348391244,1736500250429,-675.22,0.00010546,2]
[348391245,1736500250440,-500.0,0.00010546,2]
[348391246,1736500250449,-564.66,0.00010546,2]
[348391247,1736500250458,-2479.92,0.00010546,2]
[348391248,1736500250467,-657.44,0.00010546,2]
[348391249,1736500250477,-1002.37,0.00010546,2]
[348391250,1736500250486,-500.0,0.00010546,2]
[348391251,1736500250495,-656.74,0.00010546,2]
[348391252,1736500250505,-519.3,0.00010546,2]
[348391253,1736500250514,-500.0,0.00010546,2]
[348391254,1736500250523,-1068.96,0.00010546,2]
[348391255,1736500250533,-500.0,0.00010546,2]
[348391256,1736500250542,-279.05,0.00010546,2]
[348391257,1736500250552,-500.0,0.00010546,2]
[348391258,1736500250561,-500.0,0.00010546,2]
[348391259,1736500250571,-906.27,0.00010547,2]
[348391260,1736500250580,-778.52,0.00010547,2]
[348391261,1736500250590,-1187.66,0.00010547,2]
[348391262,1736500250600,-1232.26,0.00010547,2]
[348391263,1736500250609,-1701.47,0.00010547,2]
[348391264,1736500250619,-1021.49,0.00010547,2]
[348391265,1736500250628,-3374.65,0.00010547,2]
[348391266,1736500250637,-1512.01,0.00010547,2]
[348391267,1736500250646,-3711.70775994,0.00010624,2]
[348391268,1736500250655,-381.89290287,0.00010657,2]
[348391269,1736500250665,-160.78282822,0.00010667,2]
[348391270,1736500250674,-1115.60265148,0.00010667,2]
[348391271,1736500250683,-178.39,0.00010694,2]
[348391272,1736500250694,-3711.70775994,0.00010728,2]
[348391273,1736500250703,-1000.0,0.00010799,2]
[348391274,1736500250711,-504.84,0.000108,2]
[348391275,1736500250720,-500.0,0.00010817,2]
[348391276,1736500250729,-530.0,0.00010817,2]
[348391277,1736500250738,-500.0,0.00010817,2]
[348391278,1736500250747,-500.0,0.00010817,2]
[348391279,1736500250756,-500.0,0.00010817,2]
[348391280,1736500250765,-500.0,0.00010817,2]
[348391281,1736500250774,-624.9,0.00010817,2]
[348391282,1736500250783,-500.0,0.00010817,2]
[348391283,1736500250792,-582.78,0.00010817,2]
[348391284,1736500250801,-500.0,0.00010817,2]
[348391285,1736500250810,-500.0,0.00010817,2]
[348391286,1736500250819,-500.0,0.00010817,2]
[348391287,1736500250828,-500.0,0.00010817,2]
[348391288,1736500250836,-500.0,0.00010817,2]
[348391289,1736500250845,-500.0,0.00010817,2]
[348391290,1736500250854,-500.0,0.00010817,2]
[348391291,1736500250863,-500.0,0.00010817,2]
[348391292,1736500250872,-500.0,0.00010817,2]
[348391293,1736500250881,-503.74,0.00010817,2]
[348391294,1736500250890,-500.0,0.00010817,2]
[348391295,1736500250899,-500.0,0.00010817,2]
[348391296,1736500250908,-500.0,0.00010817,2]
[348391297,1736500250917,-678.75,0.00010817,2]
[348391298,1736500250926,-500.0,0.00010817,2]
[348391299,1736500250935,-500.0,0.00010817,2]
[348391300,1736500250944,-500.0,0.00010817,2]
[348391301,1736500250954,-500.0,0.00010817,2]
[348391302,1736500250962,-500.0,0.00010817,2]
[348391303,1736500250971,-500.0,0.00010817,2]
[348391304,1736500250980,-500.0,0.00010817,2]
[348391305,1736500250990,-500.0,0.00010817,2]
[348391306,1736500250999,-500.0,0.00010817,2]
[348391307,1736500251008,-500.0,0.00010817,2]
[348391308,1736500251017,-500.0,0.00010817,2]
[348391309,1736500251029,-500.0,0.00010817,2]
[348391310,1736500251038,-500.0,0.00010817,2]
[348391311,1736500251047,-500.0,0.00010817,2]
[348391312,1736500251056,-500.0,0.00010817,2]
[348391313,1736500251065,-500.0,0.00010817,2]
[348391314,1736500251075,-500.0,0.00010817,2]
[348391315,1736500251084,-586.22,0.00010817,2]
[348391316,1736500251093,-679.11,0.00010817,2]
[348391317,1736500251102,-500.0,0.00010817,2]
[348391318,1736500251112,-500.0,0.00010817,2]
[348391319,1736500251121,-500.0,0.00010817,2]
[348391320,1736500251130,-500.0,0.00010817,2]
[348391321,1736500251139,-729.3,0.00010817,2]
[348391322,1736500251148,-563.4,0.00010817,2]
[348391323,1736500251158,-774.57,0.00010817,2]
[348391324,1736500251167,-706.5,0.00010817,2]
[348391325,1736500251176,-500.0,0.00010817,2]
[348391326,1736500251186,-295.21228898,0.00010817,2]
[348391327,1736500251197,-500.0,0.00010817,2]
[348391328,1736500251206,-2056.74,0.00010817,2]
[348391329,1736500251215,-500.0,0.00010817,2]
[348391330,1736500251224,-500.0,0.00010817,2]
[348391331,1736500251233,-891.86,0.00010817,2]
[348391332,1736500251242,-1197.74,0.00010817,2]
[348391333,1736500251251,-500.0,0.00010817,2]
[348391334,1736500251260,-500.0,0.00010817,2]
[348391335,1736500251269,-940.96,0.00010817,2]
[348391336,1736500251278,-1578.38,0.00010817,2]
[348391337,1736500251287,-500.0,0.00010817,2]
[348391338,1736500251296,-1107.84,0.00010817,2]
[348391339,1736500251305,-500.0,0.00010817,2]
[348391340,1736500251314,-500.0,0.00010817,2]
[348391341,1736500251323,-664.6,0.00010817,2]
[348391342,1736500251332,-1029.02,0.00010817,2]
[348391343,1736500251341,-500.0,0.00010817,2]
[348391344,1736500251350,-1958.17,0.00010817,2]
[348391345,1736500251359,-1470.14,0.00010817,2]
[348391346,1736500251368,-2548.27,0.00010817,2]
[348391347,1736500251377,-6603.5,0.00010817,2]
[348391348,1736500251386,-1391.4,0.00010817,2]
[348391349,1736500251395,-500.0,0.00010817,2]
[348391350,1736500251403,-500.0,0.00010817,2]
[348391351,1736500251413,-500.0,0.00010817,2]
[348391352,1736500251422,-792.05,0.00010817,2]
[348391353,1736500251431,-695.08,0.00010817,2]
[348391354,1736500251441,-885.13,0.00010817,2]
[348391355,1736500251451,-1000.7,0.00010817,2]
[348391356,1736500251460,-1553.42,0.00010817,2]
[348391357,1736500251469,-500.0,0.00010817,2]
[348391358,1736500251479,-809.08,0.00010817,2]
[348391359,1736500251488,-1191.43,0.00010817,2]
[348391360,1736500251497,-500.0,0.00010817,2]
[348391361,1736500251506,-1806.5,0.00010817,2]
[348391362,1736500251515,-2573.85,0.00010817,2]
[348391363,1736500251524,-500.0,0.00010817,2]
[348391364,1736500251533,-434.396806,0.00010817,2]
[348391365,1736500251542,-1506.65,0.00010817,2]
[348391366,1736500251551,-736.48,0.00010817,2]
[348391367,1736500251560,-836.15,0.00010817,2]
[348391368,1736500251570,-2801.83,0.00010817,2]
[348391369,1736500251579,-887.99,0.00010817,2]
[348391370,1736500251588,-550.55,0.00010817,2]
[348391371,1736500251598,-2110.21,0.00010817,2]
[348391372,1736500251607,-986.48,0.00010817,2]
[348391373,1736500251616,-831.33,0.00010817,2]
[348391374,1736500251625,-433.582752,0.00010817,2]
[348391375,1736500251634,-1018.8,0.00010817,2]
[348391376,1736500251643,-719.34,0.00010817,2]
[348391377,1736500251651,-500.0,0.00010817,2]
[348391378,1736500251661,-771.41,0.00010817,2]
[348391379,1736500251670,-725.54,0.00010817,2]
[348391380,1736500251679,-500.0,0.00010817,2]
[348391381,1736500251688,-1412.92,0.00010817,2]
[348391382,1736500251697,-500.0,0.00010817,2]
[348391383,1736500251706,-1758.22,0.00010817,2]
[348391384,1736500251715,-837.48,0.00010817,2]
[348391385,1736500251724,-842.27,0.00010817,2]
[348391386,1736500251733,-1279.71,0.00010817,2]
[348391387,1736500251742,-563.06,0.00010817,2]
[348391388,1736500251751,-1085.96,0.00010817,2]
[348391389,1736500251760,-582.33,0.00010817,2]
[348391390,1736500251769,-500.0,0.00010817,2]
[348391391,1736500251778,-817.69,0.00010817,2]
[348391392,1736500251787,-1177.15,0.00010817,2]
[348391393,1736500251797,-757.84,0.00010817,2]
[348391394,1736500251806,-500.0,0.00010817,2]
[348391395,1736500251815,-1322.53,0.00010817,2]
[348391396,1736500251824,-3269.91,0.00010817,2]
[348391397,1736500251833,-500.0,0.00010817,2]
[348391398,1736500251842,-962.73,0.00010817,2]
[348391399,1736500251851,-500.0,0.00010817,2]
[348391400,1736500251859,-500.0,0.00010817,2]
[348391401,1736500251868,-807.38,0.00010817,2]
[348391402,1736500251877,-510.99,0.00010817,2]
[348391403,1736500251886,-986.68,0.00010817,2]
[348391404,1736500251894,-671.81,0.00010817,2]
[348391405,1736500251903,-818.83,0.00010818,2]
[348391406,1736500251912,-500.0,0.00010818,2]
[348391407,1736500251921,-500.0,0.00010818,2]
[348391408,1736500251930,-1068.78,0.00010818,2]
[348391409,1736500251940,-2231.68,0.00010818,2]
[348391410,1736500251949,-579.53,0.00010818,2]
[348391411,1736500251958,-500.0,0.00010818,2]
[348391412,1736500251968,-779.52,0.00010818,2]
[348391413,1736500251978,-854.14,0.00010818,2]
[348391414,1736500251987,-761.22,0.00010818,2]
[348391415,1736500251996,-1070.48,0.00010818,2]
[348391416,1736500252006,-859.71,0.00010818,2]
[348391417,1736500252015,-855.15,0.00010818,2]
[348391418,1736500252024,-1327.36,0.00010818,2]
[348391419,1736500252034,-1140.93,0.00010818,2]
[348391420,1736500252043,-1385.89,0.00010818,2]
[348391421,1736500252052,-1284.44,0.00010818,2]
[348391422,1736500252062,-2300.59,0.00010818,2]
[348391423,1736500252071,-5548.96,0.00010818,2]
[348391424,1736500252081,-1000.0,0.00010818,2]
[348391425,1736500252090,-1015.53,0.00010818,2]
[348391426,1736500252099,-999.61,0.00010818,2]
[348391427,1736500252108,-500.0,0.00010818,2]
[348391428,1736500252117,-2178.98,0.00010818,2]
[348391429,1736500252126,-656.42,0.00010818,2]
[348391430,1736500252136,-754.55,0.00010818,2]
[348391431,1736500252145,-500.0,0.0001082,2]
[348391432,1736500252154,-500.0,0.0001082,2]
[348391433,1736500252163,-500.0,0.0001082,2]
[348391434,1736500252173,-500.0,0.0001082,2]
[348391435,1736500252182,-500.0,0.0001082,2]
[348391436,1736500252193,-290.10152261,0.0001082,2]
[348391437,1736500252203,-500.0,0.0001082,2]
[348391438,1736500252212,-500.0,0.0001082,2]
[348391439,1736500252221,-532.26735863,0.0001082,2]
[348391440,1736500252230,-722.5,0.0001082,2]
[348391441,1736500252239,-500.0,0.0001082,2]
[348391442,1736500252248,-647.0,0.0001082,2]
[348391443,1736500252257,-500.0,0.0001082,2]
[348391444,1736500252266,-500.0,0.0001082,2]
[348391445,1736500252275,-847.26,0.0001082,2]
[348391446,1736500252285,-598.14,0.0001082,2]
[348391447,1736500252294,-317.51175698,0.0001082,2]
[348391448,1736500252303,-747.48,0.0001082,2]
[348391449,1736500252312,-500.0,0.0001082,2]
[348391450,1736500252322,-571.58,0.0001082,2]
[348391451,1736500252331,-500.0,0.0001082,2]
[348391452,1736500252340,-500.0,0.0001082,2]
[348391453,1736500252349,-676.21,0.0001082,2]
[348391454,1736500252359,-519.68,0.0001082,2]
[348391455,1736500252368,-684.89,0.0001082,2]
[348391456,1736500252377,-500.0,0.0001082,2]
[348391457,1736500252386,-678.52,0.0001082,2]
[348391458,1736500252396,-500.0,0.0001082,2]
[348391459,1736500252405,-500.0,0.0001082,2]
[348391460,1736500252415,-500.0,0.0001082,2]
[348391461,1736500252424,-500.0,0.0001082,2]
[348391462,1736500252433,-500.0,0.0001082,2]
[348391463,1736500252444,-502.22,0.0001082,2]
[348391464,1736500252454,-500.0,0.0001082,2]
[348391465,1736500252463,-726.78,0.0001082,2]
[348391466,1736500252474,-3609.52,0.0001082,2]
[348391467,1736500252484,-516.38,0.0001082,2]
[348391468,1736500252494,-500.0,0.0001082,2]
[348391469,1736500252504,-515.94,0.0001082,2]
[348391470,1736500252513,-699.66,0.0001082,2]
[348391471,1736500252523,-500.0,0.0001082,2]
[348391472,1736500252532,-500.0,0.0001082,2]
[348391473,1736500252542,-780.6,0.0001082,2]
[348391474,1736500252552,-323.3967179,0.0001082,2]
[348391475,1736500252562,-500.0,0.0001082,2]
[348391476,1736500252571,-500.0,0.0001082,2]
[348391477,1736500252580,-618.37,0.0001082,2]
[348391478,1736500252590,-798.41,0.0001082,2]
[348391479,1736500252600,-500.0,0.0001082,2]
[348391480,1736500252609,-780.76,0.0001082,2]
[348391481,1736500252619,-500.0,0.0001082,2]
[348391482,1736500252629,-839.05,0.0001082,2]
[348391483,1736500252638,-567.04,0.0001082,2]
[348391484,1736500252647,-500.0,0.0001082,2]
[348391485,1736500252656,-722.12,0.0001082,2]
[348391486,1736500252666,-500.0,0.0001082,2]
[348391487,1736500252675,-579.57,0.0001082,2]
[348391488,1736500252685,-727.02,0.0001082,2]
[348391489,1736500252694,-500.0,0.0001082,2]
[348391490,1736500252703,-799.7,0.0001082,2]
[348391491,1736500252713,-573.06,0.0001082,2]
[348391492,1736500252723,-541.26,0.0001082,2]
[348391493,1736500252732,-795.35,0.0001082,2]
[348391494,1736500252742,-700.8,0.0001082,2]
[348391495,1736500252751,-662.09,0.0001082,2]
[348391496,1736500252760,-500.0,0.0001082,2]
[348391497,1736500252770,-1084.74,0.0001082,2]
[348391498,1736500252779,-624.1,0.0001082,2]
[348391499,1736500252788,-630.17,0.0001082,2]
[348391500,1736500252797,-500.0,0.0001082,2]
[348391501,1736500252807,-773.65,0.0001082,2]
[348391502,1736500252817,-941.95,0.0001082,2]
[348391503,1736500252826,-500.0,0.0001082,2]
[348391504,1736500252836,-606.38,0.0001082,2]
[348391505,1736500252845,-741.93,0.0001082,2]
[348391506,1736500252855,-3198.72,0.0001082,2]
[348391507,1736500252865,-500.0,0.0001082,2]
[348391508,1736500252875,-500.0,0.0001082,2]
[348391509,1736500252884,-567.27103712,0.0001082,2]
[348391510,1736500252894,-924.89,0.0001082,2]
[348391511,1736500252903,-1983.31,0.0001082,2]
[348391512,1736500252913,-878.81,0.0001082,2]
[348391513,1736500252923,-2797.4,0.0001082,2]
[348391514,1736500252933,-660.89,0.0001082,2]
[348391515,1736500252944,-806.13,0.0001082,2]
[348391516,1736500252954,-1243.22,0.0001082,2]
[348391517,1736500252963,-500.0,0.0001082,2]
[348391518,1736500252972,-828.33,0.0001082,2]
[348391519,1736500252982,-1719.05,0.0001082,2]
[348391520,1736500252991,-874.32,0.0001082,2]
[348391521,1736500253001,-2691.14,0.0001082,2]
[348391522,1736500253010,-714.58,0.0001082,2]
[348391523,1736500253019,-1219.22,0.0001082,2]
[348391524,1736500253033,-500.0,0.0001082,2]
[348391525,1736500253042,-500.0,0.0001082,2]
[348391526,1736500253052,-876.12,0.0001082,2]
[348391527,1736500253062,-605.63,0.0001082,2]
[348391528,1736500253072,-500.0,0.0001082,2]
[348391529,1736500253081,-590.85,0.0001082,2]
[348391530,1736500253091,-500.0,0.0001082,2]
[348391531,1736500253100,-2537.41,0.0001082,2]
[348391532,1736500253111,-935.44,0.0001082,2]
[348391533,1736500253121,-704.75,0.0001082,2]
[348391534,1736500253130,-500.0,0.0001082,2]
[348391535,1736500253141,-575.78,0.0001082,2]
[348391536,1736500253151,-500.0,0.0001082,2]
[348391537,1736500253161,-635.55,0.0001082,2]
[348391538,1736500253171,-500.0,0.0001082,2]
[348391539,1736500253181,-755.21,0.0001082,2]
[348391540,1736500253191,-925.95,0.0001082,2]
[348391541,1736500253200,-855.59,0.0001082,2]
[348391542,1736500253210,-1110.51,0.0001082,2]
[348391543,1736500253220,-500.0,0.0001082,2]
[348391544,1736500253230,-500.0,0.0001082,2]
[348391545,1736500253239,-500.0,0.0001082,2]
[348391546,1736500253249,-616.02,0.0001082,2]
[348391547,1736500253259,-675.22,0.0001082,2]
[348391548,1736500253268,-500.0,0.0001082,2]
[348391549,1736500253278,-564.66,0.0001082,2]
[348391550,1736500253288,-2479.92,0.0001082,2]
[348391551,1736500253298,-657.44,0.0001082,2]
[348391552,1736500253308,-1002.37,0.0001082,2]
[348391553,1736500253318,-500.0,0.0001082,2]
[348391554,1736500253328,-656.74,0.0001082,2]
[348391555,1736500253338,-519.3,0.0001082,2]
[348391556,1736500253348,-500.0,0.0001082,2]
[348391557,1736500253358,-1068.96,0.0001082,2]
[348391558,1736500253368,-500.0,0.0001082,2]
[348391559,1736500253377,-500.0,0.0001082,2]
[348391560,1736500253387,-445.12652478,0.0001082,2]
[348391561,1736500253397,-906.27,0.00010821,2]
[348391562,1736500253407,-778.52,0.00010821,2]
[348391563,1736500253416,-1187.66,0.00010821,2]
[348391564,1736500253426,-1232.26,0.00010821,2]
[348391565,1736500253436,-1701.47,0.00010821,2]
[348391566,1736500253447,-1021.49,0.00010821,2]
[348391567,1736500253457,-3374.65,0.00010821,2]
[348391568,1736500253467,-1512.01,0.00010821,2]
[348391569,1736500253477,-3711.70775994,0.00010831,2]
[348391570,1736500253487,-255.0,0.00010889,2]
[348391571,1736500253497,-869.2460164,0.000109,2]
[348391572,1736500253507,-3711.70775994,0.00010934,2]
[348391573,1736500253518,-999.0,0.00010958,2]
[348391574,1736500253528,-7500.0,0.00010958,2]
[348391575,1736500253538,-6774.81812091,0.00010958,2]
[348391576,1736500253548,-150.0,0.00010958,2]
[348391577,1736500253558,-150.0,0.00010959,2]
[348391578,1736500253569,-500.0,0.00010986,2]
[348391579,1736500253579,-919.64,0.00011,2]
[348391580,1736500253588,-500.0,0.00011,2]
[348391581,1736500253599,-500.0,0.00011,3]
[348391582,1736500253609,-550.0,0.00011,2]
[348391583,1736500253619,-587.0,0.00011032,2]
[348391584,1736500253629,-3711.70775994,0.00011038,2]
[348391585,1736500253639,-150.0,0.00011047,2]
[348391586,1736500253649,-150.0,0.00011047,2]